[Event "Titled Tuesday Blitz November 01 Early 2022"]
[White "Timofeev, Artyom"]
[Black "Parpiev, Isaak"]
[WhiteFideId "4140419"]
[BlackFideId "34281576"]
[WhiteElo "2579"]
[BlackElo "2100"]
[Result "0-1"]
[Round "01"]
[TimeControl "180+1"]
[Date "2022.11.02"]
[WhiteClock "0:00:01"]
[BlackClock "0:00:11"]

1. d4 {[%clk 0:03:00]}  Nf6 {[%clk 0:02:56]} 2. Bf4 {[%clk 0:03:00]}  e6 {[%clk 0:02:52]} 3. e3 {[%clk 0:02:57]}  c5 {[%clk 0:02:52]} 4. Nc3 {[%clk 0:02:55]}  d5 {[%clk 0:02:46]} 5. Nb5 {[%clk 0:02:53]}  Na6 {[%clk 0:02:46]} 6. Nf3 {[%clk 0:02:50]}  Be7 {[%clk 0:02:38]} 7. Be2 {[%clk 0:02:49]}  O-O {[%clk 0:02:36]} 8. O-O {[%clk 0:02:48]}  Bd7 {[%clk 0:02:36]} 9. h3 {[%clk 0:02:45]}  Bxb5 {[%clk 0:02:35]} 10. Bxb5 {[%clk 0:02:44]}  Nc7 {[%clk 0:02:36]} 11. Be2 {[%clk 0:02:43]}  Ne4 {[%clk 0:02:29]} 12. c4 {[%clk 0:02:36]}  cxd4 {[%clk 0:02:18]} 13. Nxd4 {[%clk 0:02:30]}  Bd6 {[%clk 0:02:09]} 14. Bxd6 {[%clk 0:02:13]}  Qxd6 {[%clk 0:02:01]} 15. cxd5 {[%clk 0:02:12]}  Nxd5 {[%clk 0:01:59]} 16. Bf3 {[%clk 0:02:12]}  Ng5 {[%clk 0:01:52]} 17. Be2 {[%clk 0:02:12]}  Ne4 {[%clk 0:01:52]} 18. Qd3 {[%clk 0:02:06]}  Nc5 {[%clk 0:01:41]} 19. Qa3 {[%clk 0:02:05]}  Qb6 {[%clk 0:01:40]} 20. Bf3 {[%clk 0:02:03]}  Rfd8 {[%clk 0:01:37]} 21. Rac1 {[%clk 0:01:59]}  Rac8 {[%clk 0:01:36]} 22. Bxd5 {[%clk 0:01:57]}  exd5 {[%clk 0:01:27]} 23. Nf5 {[%clk 0:01:56]}  Rc7 {[%clk 0:00:55]} 24. Rfd1 {[%clk 0:01:35]}  Ne6 {[%clk 0:00:50]} 25. Rxc7 {[%clk 0:01:32]}  Qxc7 {[%clk 0:00:50]} 26. Rxd5 {[%clk 0:01:20]}  Rxd5 {[%clk 0:00:36]} 27. Ne7+ {[%clk 0:01:20]}  Kh8 {[%clk 0:00:34]} 28. Nxd5 {[%clk 0:01:20]}  Qc6 {[%clk 0:00:31]} 29. Nc3 {[%clk 0:01:08]}  h6 {[%clk 0:00:27]} 30. Qxa7 {[%clk 0:01:07]}  Ng5 {[%clk 0:00:15]} 31. Qd4 {[%clk 0:00:56]}  Qg6 {[%clk 0:00:15]} 32. Kh2 {[%clk 0:00:44]}  Qc2 {[%clk 0:00:14]} 33. Nd1 {[%clk 0:00:06]}  Ne4 {[%clk 0:00:11]} 34. f3 {[%clk 0:00:05]}  Nd2 {[%clk 0:00:11]} 35. Qd8+ {[%clk 0:00:02]}  Kh7 {[%clk 0:00:11]} 36. Nc3 {[%clk 0:00:03]}  Nxf3+ {[%clk 0:00:11]} 37. Kg3 {[%clk 0:00:03]}  Ne1 {[%clk 0:00:11]} 38. Kf4 {[%clk 0:00:02]}  Nxg2+ {[%clk 0:00:10]} 39. Ke5 {[%clk 0:00:02]}  Nxe3 {[%clk 0:00:10]} 40. Kd4 {[%clk 0:00:02]}  Qd2+ {[%clk 0:00:10]} 41. Kc5 {[%clk 0:00:01]}  Qxd8 {[%clk 0:00:11]} 0-1


[Site "https://www.chess.com"]

[Event "Titled Tuesday Blitz November 01 Early 2022"]
[White "Toelly, Michael"]
[Black "Ovchinnikov, Vsevolod"]
[WhiteFideId "1625330"]
[BlackFideId "24176842"]
[WhiteElo "2090"]
[BlackElo "2376"]
[Result "1/2-1/2"]
[Round "01"]
[TimeControl "180+1"]
[Date "2022.11.02"]
[WhiteClock "0:00:52"]
[BlackClock "0:00:13"]

1. e4 {[%clk 0:03:00]}  g6 {[%clk 0:03:00]} 2. Nf3 {[%clk 0:02:58]}  Bg7 {[%clk 0:03:00]} 3. d4 {[%clk 0:02:59]}  d6 {[%clk 0:03:00]} 4. Nc3 {[%clk 0:03:00]}  a6 {[%clk 0:03:01]} 5. Bf4 {[%clk 0:03:00]}  b5 {[%clk 0:03:01]} 6. Qd2 {[%clk 0:03:01]}  Nd7 {[%clk 0:03:01]} 7. Be2 {[%clk 0:03:02]}  Bb7 {[%clk 0:03:01]} 8. h4 {[%clk 0:03:02]}  c5 {[%clk 0:03:02]} 9. d5 {[%clk 0:03:02]}  h5 {[%clk 0:03:00]} 10. Nh2 {[%clk 0:03:00]}  Qa5 {[%clk 0:02:56]} 11. g4 {[%clk 0:02:58]}  hxg4 {[%clk 0:02:52]} 12. Nxg4 {[%clk 0:02:58]}  Ngf6 {[%clk 0:02:48]} 13. Bg3 {[%clk 0:02:57]}  Nxg4 {[%clk 0:02:44]} 14. Bxg4 {[%clk 0:02:55]}  Ne5 {[%clk 0:02:44]} 15. Be2 {[%clk 0:02:54]}  Qb4 {[%clk 0:02:34]} 16. O-O-O {[%clk 0:02:48]}  Nc4 {[%clk 0:02:26]} 17. Bxc4 {[%clk 0:02:47]}  Qxc4 {[%clk 0:02:26]} 18. Kb1 {[%clk 0:02:44]}  Rh5 {[%clk 0:01:55]} 19. f3 {[%clk 0:02:35]}  a5 {[%clk 0:01:44]} 20. Ne2 {[%clk 0:02:33]}  a4 {[%clk 0:00:52]} 21. b3 {[%clk 0:02:20]}  axb3 {[%clk 0:00:38]} 22. cxb3 {[%clk 0:02:19]}  Qb4 {[%clk 0:00:37]} 23. Qxb4 {[%clk 0:02:19]}  cxb4 {[%clk 0:00:38]} 24. Nd4 {[%clk 0:02:18]}  Ba6 {[%clk 0:00:22]} 25. Nc6 {[%clk 0:02:14]}  Bf6 {[%clk 0:00:20]} 26. Nxb4 {[%clk 0:02:13]}  Bb7 {[%clk 0:00:21]} 27. Rc1 {[%clk 0:02:13]}  Kd7 {[%clk 0:00:21]} 28. Rc2 {[%clk 0:02:12]}  Rc8 {[%clk 0:00:20]} 29. Rhc1 {[%clk 0:02:12]}  Rxc2 {[%clk 0:00:20]} 30. Rxc2 {[%clk 0:02:12]}  Bxh4 {[%clk 0:00:21]} 31. Bxh4 {[%clk 0:02:10]}  Rxh4 {[%clk 0:00:21]} 32. a4 {[%clk 0:02:07]}  bxa4 {[%clk 0:00:20]} 33. bxa4 {[%clk 0:02:07]}  f5 {[%clk 0:00:20]} 34. Rc4 {[%clk 0:02:04]}  fxe4 {[%clk 0:00:20]} 35. fxe4 {[%clk 0:02:04]}  g5 {[%clk 0:00:13]} 36. Kc2 {[%clk 0:01:50]}  g4 {[%clk 0:00:14]} 37. Kd2 {[%clk 0:01:49]}  Rh2+ {[%clk 0:00:12]} 38. Ke3 {[%clk 0:01:49]}  Rb2 {[%clk 0:00:11]} 39. Kf4 {[%clk 0:01:45]}  Rb3 {[%clk 0:00:10]} 40. Kxg4 {[%clk 0:01:42]}  Ra3 {[%clk 0:00:10]} 41. Nc2 {[%clk 0:01:40]}  Ra2 {[%clk 0:00:09]} 42. Nd4 {[%clk 0:01:40]}  Ba6 {[%clk 0:00:09]} 43. Rb4 {[%clk 0:01:40]}  Bc8 {[%clk 0:00:06]} 44. Rc4 {[%clk 0:01:33]}  Ra3 {[%clk 0:00:05]} 45. Kf4 {[%clk 0:01:32]}  Ba6 {[%clk 0:00:05]} 46. Rb4 {[%clk 0:01:32]}  Ra2 {[%clk 0:00:05]} 47. Ne6 {[%clk 0:01:31]}  Ra3 {[%clk 0:00:05]} 48. Kf5 {[%clk 0:01:31]}  Rf3+ {[%clk 0:00:04]} 49. Kg4 {[%clk 0:01:31]}  Ra3 {[%clk 0:00:05]} 50. Nf8+ {[%clk 0:01:31]}  Ke8 {[%clk 0:00:05]} 51. Ne6 {[%clk 0:01:30]}  Kd7 {[%clk 0:00:06]} 52. Kf5 {[%clk 0:01:28]}  Rf3+ {[%clk 0:00:05]} 53. Kg6 {[%clk 0:01:28]}  Ra3 {[%clk 0:00:06]} 54. Kf7 {[%clk 0:01:28]}  Rf3+ {[%clk 0:00:06]} 55. Kg6 {[%clk 0:01:27]}  Ra3 {[%clk 0:00:07]} 56. Rb6 {[%clk 0:01:27]}  Rxa4 {[%clk 0:00:07]} 57. Nf8+ {[%clk 0:01:27]}  Kc7 {[%clk 0:00:06]} 58. Rc6+ {[%clk 0:01:26]}  Kd8 {[%clk 0:00:07]} 59. Ne6+ {[%clk 0:01:25]}  Kd7 {[%clk 0:00:07]} 60. Rc7+ {[%clk 0:01:25]}  Ke8 {[%clk 0:00:08]} 61. Ng5 {[%clk 0:01:15]}  Rc4 {[%clk 0:00:08]} 62. Ra7 {[%clk 0:01:14]}  Bc8 {[%clk 0:00:09]} 63. Ra8 {[%clk 0:01:13]}  Kd8 {[%clk 0:00:09]} 64. Nf7+ {[%clk 0:01:11]}  Ke8 {[%clk 0:00:08]} 65. e5 {[%clk 0:01:10]}  dxe5 {[%clk 0:00:09]} 66. Nxe5 {[%clk 0:01:08]}  Rc5 {[%clk 0:00:09]} 67. Nc6 {[%clk 0:01:00]}  Kd7 {[%clk 0:00:10]} 68. Ra7+ {[%clk 0:00:57]}  Kd6 {[%clk 0:00:10]} 69. Nxe7 {[%clk 0:00:53]}  Bd7 {[%clk 0:00:11]} 70. Nf5+ {[%clk 0:00:52]}  Bxf5+ {[%clk 0:00:11]} 71. Kxf5 {[%clk 0:00:52]}  Rxd5+ {[%clk 0:00:12]} 72. Kf6 {[%clk 0:00:52]}  Rc5 {[%clk 0:00:12]} 73. Ra6+ {[%clk 0:00:52]}  Rc6 {[%clk 0:00:12]} 74. Rxc6+ {[%clk 0:00:52]}  Kxc6 {[%clk 0:00:13]} 1/2-1/2


[Site "https://www.chess.com"]

[Event "Titled Tuesday Blitz November 01 Early 2022"]
[White "Tokhirjonova, Gulrukhbegim"]
[Black "Oparin, Grigoriy"]
[WhiteFideId "14203626"]
[BlackFideId "24125890"]
[WhiteElo "2236"]
[BlackElo "2639"]
[Result "0-1"]
[Round "01"]
[TimeControl "180+1"]
[Date "2022.11.01"]
[WhiteClock "0:00:16"]
[BlackClock "0:00:21"]

1. e4 {[%clk 0:02:59]}  c5 {[%clk 0:02:54]} 2. Nf3 {[%clk 0:02:56]}  d6 {[%clk 0:02:55]} 3. d4 {[%clk 0:02:56]}  cxd4 {[%clk 0:02:56]} 4. Qxd4 {[%clk 0:02:55]}  Nf6 {[%clk 0:02:55]} 5. Nc3 {[%clk 0:02:46]}  Nc6 {[%clk 0:02:46]} 6. Bb5 {[%clk 0:02:45]}  Bd7 {[%clk 0:02:46]} 7. Bxc6 {[%clk 0:02:44]}  Bxc6 {[%clk 0:02:47]} 8. Bg5 {[%clk 0:02:44]}  e6 {[%clk 0:02:45]} 9. O-O-O {[%clk 0:02:43]}  Be7 {[%clk 0:02:45]} 10. Rhe1 {[%clk 0:02:43]}  Qa5 {[%clk 0:02:44]} 11. Kb1 {[%clk 0:02:39]}  h6 {[%clk 0:02:41]} 12. Bd2 {[%clk 0:02:33]}  Qa6 {[%clk 0:02:35]} 13. h3 {[%clk 0:02:27]}  Rd8 {[%clk 0:02:29]} 14. g4 {[%clk 0:02:24]}  b5 {[%clk 0:02:24]} 15. a3 {[%clk 0:02:07]}  Qb7 {[%clk 0:02:22]} 16. g5 {[%clk 0:02:00]}  hxg5 {[%clk 0:02:22]} 17. Nxg5 {[%clk 0:02:00]}  a5 {[%clk 0:02:17]} 18. Na2 {[%clk 0:01:52]}  Ra8 {[%clk 0:01:44]} 19. f4 {[%clk 0:01:37]}  Rh4 {[%clk 0:01:08]} 20. Qf2 {[%clk 0:01:28]}  Rh5 {[%clk 0:01:08]} 21. e5 {[%clk 0:01:18]}  Ne4 {[%clk 0:00:39]} 22. Nxe4 {[%clk 0:01:11]}  Bxe4 {[%clk 0:00:40]} 23. Nc3 {[%clk 0:00:53]}  Bg6 {[%clk 0:00:35]} 24. Qe2 {[%clk 0:00:50]}  dxe5 {[%clk 0:00:26]} 25. Qxb5+ {[%clk 0:00:35]}  Qxb5 {[%clk 0:00:26]} 26. Nxb5 {[%clk 0:00:36]}  Rc8 {[%clk 0:00:26]} 27. Bc3 {[%clk 0:00:22]}  exf4 {[%clk 0:00:26]} 28. Nd6+ {[%clk 0:00:22]}  Bxd6 {[%clk 0:00:26]} 29. Rxd6 {[%clk 0:00:22]}  Rxh3 {[%clk 0:00:22]} 30. Rf1 {[%clk 0:00:16]}  Rh2 {[%clk 0:00:20]} 31. Rxf4 {[%clk 0:00:15]}  Bxc2+ {[%clk 0:00:21]} 32. Ka2 {[%clk 0:00:14]}  a4 {[%clk 0:00:21]} 33. Rf1 {[%clk 0:00:14]}  Ke7 {[%clk 0:00:18]} 34. Rd2 {[%clk 0:00:14]}  Rxd2 {[%clk 0:00:17]} 35. Bxd2 {[%clk 0:00:14]}  Bb3+ {[%clk 0:00:17]} 36. Ka1 {[%clk 0:00:15]}  f6 {[%clk 0:00:18]} 37. Bb4+ {[%clk 0:00:15]}  Kf7 {[%clk 0:00:18]} 38. Kb1 {[%clk 0:00:14]}  e5 {[%clk 0:00:19]} 39. Rc1 {[%clk 0:00:14]}  Rxc1+ {[%clk 0:00:18]} 40. Kxc1 {[%clk 0:00:15]}  g5 {[%clk 0:00:19]} 41. Kd2 {[%clk 0:00:16]}  g4 {[%clk 0:00:19]} 42. Bc5 {[%clk 0:00:16]}  Ke6 {[%clk 0:00:19]} 43. Ke3 {[%clk 0:00:16]}  f5 {[%clk 0:00:20]} 44. Kf2 {[%clk 0:00:16]}  f4 {[%clk 0:00:20]} 45. Kg2 {[%clk 0:00:16]}  Kf5 {[%clk 0:00:21]} 46. Kf2 {[%clk 0:00:16]}  e4 {[%clk 0:00:21]} 47. Bb6 {[%clk 0:00:16]}  g3+ {[%clk 0:00:21]} 0-1


[Site "https://www.chess.com"]

[Event "Titled Tuesday Blitz November 01 Early 2022"]
[White "Troltenier, Dirk"]
[Black "Darini, Pouria"]
[WhiteFideId "4606400"]
[BlackFideId "12502200"]
[WhiteElo "2337"]
[BlackElo "2483"]
[Result "0-1"]
[Round "01"]
[TimeControl "180+1"]
[Date "2022.11.02"]
[WhiteClock "0:00:06"]
[BlackClock "0:00:09"]

1. e4 {[%clk 0:03:00]}  c5 {[%clk 0:02:59]} 2. c3 {[%clk 0:03:00]}  Nf6 {[%clk 0:02:57]} 3. e5 {[%clk 0:03:00]}  Nd5 {[%clk 0:02:58]} 4. d4 {[%clk 0:03:00]}  cxd4 {[%clk 0:02:58]} 5. Nf3 {[%clk 0:03:01]}  e6 {[%clk 0:02:59]} 6. Bc4 {[%clk 0:03:00]}  d6 {[%clk 0:02:53]} 7. O-O {[%clk 0:02:51]}  Be7 {[%clk 0:02:44]} 8. exd6 {[%clk 0:02:41]}  Qxd6 {[%clk 0:02:43]} 9. cxd4 {[%clk 0:02:40]}  O-O {[%clk 0:02:43]} 10. Nc3 {[%clk 0:02:40]}  Nc6 {[%clk 0:02:39]} 11. Re1 {[%clk 0:02:37]}  Rd8 {[%clk 0:02:34]} 12. Bb3 {[%clk 0:02:17]}  Nf6 {[%clk 0:01:58]} 13. Be3 {[%clk 0:02:05]}  b6 {[%clk 0:01:57]} 14. Qd2 {[%clk 0:01:44]}  Bb7 {[%clk 0:01:55]} 15. Rad1 {[%clk 0:01:41]}  Na5 {[%clk 0:01:42]} 16. Bc2 {[%clk 0:01:11]}  Bxf3 {[%clk 0:01:37]} 17. gxf3 {[%clk 0:01:11]}  Nc4 {[%clk 0:01:35]} 18. Qc1 {[%clk 0:00:39]}  Rac8 {[%clk 0:01:35]} 19. Bf4 {[%clk 0:00:33]}  Qb4 {[%clk 0:01:23]} 20. d5 {[%clk 0:00:16]}  Nxb2 {[%clk 0:00:54]} 21. dxe6 {[%clk 0:00:07]}  fxe6 {[%clk 0:00:48]} 22. Bb3 {[%clk 0:00:05]}  Nxd1 {[%clk 0:00:18]} 23. Bxe6+ {[%clk 0:00:05]}  Kf8 {[%clk 0:00:15]} 24. Bxc8 {[%clk 0:00:06]}  Rxc8 {[%clk 0:00:09]} 0-1


[Site "https://www.chess.com"]

[Event "Titled Tuesday Blitz November 01 Early 2022"]
[White "Viana Da Costa, Fernando"]
[Black "Svane, Rasmus"]
[WhiteFideId "2111900"]
[BlackFideId "4657101"]
[WhiteElo "2277"]
[BlackElo "2674"]
[Result "0-1"]
[Round "01"]
[TimeControl "180+1"]
[Date "2022.11.01"]
[WhiteClock "0:00:02"]
[BlackClock "0:01:10"]

1. d4 {[%clk 0:03:00]}  d5 {[%clk 0:02:59]} 2. c4 {[%clk 0:02:59]}  e6 {[%clk 0:02:59]} 3. Nc3 {[%clk 0:02:58]}  a6 {[%clk 0:02:59]} 4. cxd5 {[%clk 0:02:55]}  exd5 {[%clk 0:03:00]} 5. Bf4 {[%clk 0:02:54]}  Nf6 {[%clk 0:02:59]} 6. e3 {[%clk 0:02:52]}  Bd6 {[%clk 0:02:59]} 7. Bg3 {[%clk 0:02:47]}  O-O {[%clk 0:02:57]} 8. Bd3 {[%clk 0:02:46]}  Re8 {[%clk 0:02:54]} 9. Nge2 {[%clk 0:02:44]}  c6 {[%clk 0:02:37]} 10. O-O {[%clk 0:02:43]}  h6 {[%clk 0:02:37]} 11. Rb1 {[%clk 0:02:40]}  Qe7 {[%clk 0:02:27]} 12. Qc2 {[%clk 0:02:38]}  Bg4 {[%clk 0:02:21]} 13. Bxd6 {[%clk 0:02:34]}  Qxd6 {[%clk 0:02:22]} 14. b4 {[%clk 0:02:33]}  Bxe2 {[%clk 0:02:21]} 15. Bxe2 {[%clk 0:02:31]}  Nbd7 {[%clk 0:02:21]} 16. Rfc1 {[%clk 0:02:29]}  g6 {[%clk 0:02:18]} 17. Na4 {[%clk 0:02:25]}  Re7 {[%clk 0:02:16]} 18. Nc5 {[%clk 0:02:23]}  Nb6 {[%clk 0:02:16]} 19. a4 {[%clk 0:02:19]}  Kg7 {[%clk 0:02:15]} 20. b5 {[%clk 0:02:08]}  cxb5 {[%clk 0:02:16]} 21. axb5 {[%clk 0:02:08]}  a5 {[%clk 0:02:17]} 22. Na4 {[%clk 0:02:08]}  Rc8 {[%clk 0:02:03]} 23. Qxc8 {[%clk 0:01:13]}  Nxc8 {[%clk 0:02:03]} 24. Rxc8 {[%clk 0:01:14]}  Rc7 {[%clk 0:02:02]} 25. Rxc7 {[%clk 0:01:00]}  Qxc7 {[%clk 0:02:03]} 26. Bd3 {[%clk 0:01:01]}  Ng4 {[%clk 0:01:56]} 27. g3 {[%clk 0:01:00]}  Qd6 {[%clk 0:01:55]} 28. b6 {[%clk 0:00:54]}  Qc6 {[%clk 0:01:41]} 29. Nc5 {[%clk 0:00:52]}  a4 {[%clk 0:01:36]} 30. Bb5 {[%clk 0:00:27]}  Qxb6 {[%clk 0:01:34]} 31. Nxa4 {[%clk 0:00:28]}  Qa5 {[%clk 0:01:33]} 32. Bd7 {[%clk 0:00:26]}  Nf6 {[%clk 0:01:29]} 33. Bb5 {[%clk 0:00:26]}  Ne4 {[%clk 0:01:27]} 34. Rb2 {[%clk 0:00:14]}  h5 {[%clk 0:01:26]} 35. h4 {[%clk 0:00:13]}  Kf8 {[%clk 0:01:13]} 36. Kg2 {[%clk 0:00:13]}  Ke7 {[%clk 0:01:11]} 37. Nc5 {[%clk 0:00:11]}  Nxc5 {[%clk 0:01:11]} 38. dxc5 {[%clk 0:00:11]}  Qc3 {[%clk 0:01:11]} 39. Rb1 {[%clk 0:00:10]}  Qxc5 {[%clk 0:01:12]} 40. Bd3 {[%clk 0:00:10]}  b6 {[%clk 0:01:11]} 41. Be2 {[%clk 0:00:09]}  d4 {[%clk 0:01:11]} 42. exd4 {[%clk 0:00:06]}  Qxd4 {[%clk 0:01:12]} 43. Kf1 {[%clk 0:00:03]}  Qe4 {[%clk 0:01:10]} 44. Rb5 {[%clk 0:00:02]}  Qh1# {[%clk 0:01:10]} 0-1


[Site "https://www.chess.com"]

[Event "Titled Tuesday Blitz November 01 Early 2022"]
[White "Vusatiuk, Vladimir"]
[Black "Sarana, Alexey"]
[WhiteFideId "14118610"]
[BlackFideId "24133795"]
[WhiteElo "2208"]
[BlackElo "2689"]
[Result "0-1"]
[Round "01"]
[TimeControl "180+1"]
[Date "2022.11.01"]
[WhiteClock "0:00:10"]
[BlackClock "0:00:33"]

1. Nf3 {[%clk 0:02:59]}  d5 {[%clk 0:02:58]} 2. c4 {[%clk 0:02:58]}  d4 {[%clk 0:02:57]} 3. b4 {[%clk 0:02:58]}  c5 {[%clk 0:02:56]} 4. e3 {[%clk 0:02:55]}  dxe3 {[%clk 0:02:55]} 5. fxe3 {[%clk 0:02:55]}  cxb4 {[%clk 0:02:55]} 6. d4 {[%clk 0:02:56]}  e6 {[%clk 0:02:53]} 7. Bd3 {[%clk 0:02:56]}  Nf6 {[%clk 0:02:54]} 8. O-O {[%clk 0:02:56]}  Be7 {[%clk 0:02:54]} 9. Qe1 {[%clk 0:02:54]}  Nc6 {[%clk 0:02:53]} 10. Nbd2 {[%clk 0:02:51]}  O-O {[%clk 0:02:45]} 11. Bb2 {[%clk 0:02:51]}  Bd6 {[%clk 0:02:40]} 12. Qh4 {[%clk 0:02:48]}  h6 {[%clk 0:02:37]} 13. Rad1 {[%clk 0:02:02]}  Qe7 {[%clk 0:02:25]} 14. Ne5 {[%clk 0:01:56]}  Bxe5 {[%clk 0:02:11]} 15. dxe5 {[%clk 0:01:54]}  Nh7 {[%clk 0:02:12]} 16. Rf6 {[%clk 0:01:26]}  Rd8 {[%clk 0:01:55]} 17. Ne4 {[%clk 0:00:35]}  Qf8 {[%clk 0:01:21]} 18. Rxh6 {[%clk 0:00:22]}  gxh6 {[%clk 0:01:17]} 19. Nf6+ {[%clk 0:00:21]}  Nxf6 {[%clk 0:01:09]} 20. exf6 {[%clk 0:00:22]}  e5 {[%clk 0:01:05]} 21. Qe4 {[%clk 0:00:18]}  Rxd3 {[%clk 0:01:03]} 22. Rxd3 {[%clk 0:00:19]}  Be6 {[%clk 0:01:00]} 23. Bxe5 {[%clk 0:00:18]}  Nxe5 {[%clk 0:00:54]} 24. Qxe5 {[%clk 0:00:19]}  Kh8 {[%clk 0:00:51]} 25. Qf4 {[%clk 0:00:17]}  Qg8 {[%clk 0:00:48]} 26. e4 {[%clk 0:00:11]}  Qg5 {[%clk 0:00:44]} 27. Qc7 {[%clk 0:00:07]}  Rg8 {[%clk 0:00:43]} 28. Rg3 {[%clk 0:00:07]}  Qc1+ {[%clk 0:00:43]} 29. Kf2 {[%clk 0:00:07]}  Qd2+ {[%clk 0:00:44]} 30. Kf1 {[%clk 0:00:08]}  Rxg3 {[%clk 0:00:35]} 31. hxg3 {[%clk 0:00:08]}  Qd1+ {[%clk 0:00:33]} 32. Kf2 {[%clk 0:00:09]}  Qd4+ {[%clk 0:00:33]} 33. Kf1 {[%clk 0:00:09]}  Bxc4+ {[%clk 0:00:33]} 34. Ke1 {[%clk 0:00:10]}  Qe3+ {[%clk 0:00:32]} 35. Kd1 {[%clk 0:00:10]}  Qd3+ {[%clk 0:00:32]} 36. Kc1 {[%clk 0:00:10]}  Qc3+ {[%clk 0:00:32]} 37. Kd1 {[%clk 0:00:10]}  Bb3+ {[%clk 0:00:33]} 38. axb3 {[%clk 0:00:10]}  Qxc7 {[%clk 0:00:33]} 0-1


[Site "https://www.chess.com"]

[Event "Titled Tuesday Blitz November 01 Early 2022"]
[White "Wieczorek, Oskar"]
[Black "Samarth, J Rao"]
[WhiteFideId "1133950"]
[BlackFideId "46652370"]
[WhiteElo "2404"]
[BlackElo "1564"]
[Result "0-1"]
[Round "01"]
[TimeControl "180+1"]
[Date "2022.11.02"]
[WhiteClock "0:01:43"]
[BlackClock "0:01:39"]

1. e4 {[%clk 0:03:00]}  c5 {[%clk 0:02:41]} 2. Nf3 {[%clk 0:03:00]}  d6 {[%clk 0:02:41]} 3. d4 {[%clk 0:02:59]}  cxd4 {[%clk 0:02:42]} 4. Nxd4 {[%clk 0:02:59]}  Nf6 {[%clk 0:02:42]} 5. Nc3 {[%clk 0:02:59]}  a6 {[%clk 0:02:42]} 6. h4 {[%clk 0:02:59]}  e5 {[%clk 0:02:34]} 7. Nb3 {[%clk 0:02:59]}  Be7 {[%clk 0:02:33]} 8. Bg5 {[%clk 0:02:59]}  Nbd7 {[%clk 0:02:33]} 9. a4 {[%clk 0:02:56]}  b6 {[%clk 0:02:32]} 10. Bc4 {[%clk 0:02:56]}  Bb7 {[%clk 0:02:32]} 11. Qe2 {[%clk 0:02:57]}  Qc7 {[%clk 0:02:31]} 12. Rd1 {[%clk 0:02:53]}  h6 {[%clk 0:02:31]} 13. Bxf6 {[%clk 0:02:51]}  Nxf6 {[%clk 0:02:30]} 14. Nd2 {[%clk 0:02:52]}  O-O {[%clk 0:02:29]} 15. Bb3 {[%clk 0:02:47]}  Qc5 {[%clk 0:02:12]} 16. Qc4 {[%clk 0:02:17]}  Rac8 {[%clk 0:02:01]} 17. Qxc5 {[%clk 0:02:15]}  dxc5 {[%clk 0:01:57]} 18. Nc4 {[%clk 0:02:12]}  Nxe4 {[%clk 0:01:56]} 19. Nxe4 {[%clk 0:02:09]}  Bxe4 {[%clk 0:01:56]} 20. Nxb6 {[%clk 0:02:10]}  Bxg2 {[%clk 0:01:55]} 21. Nxc8 {[%clk 0:02:10]}  Rxc8 {[%clk 0:01:52]} 22. Rg1 {[%clk 0:02:10]}  Bf3 {[%clk 0:01:52]} 23. Rd7 {[%clk 0:02:10]}  Kf8 {[%clk 0:01:52]} 24. Ra7 {[%clk 0:01:52]}  c4 {[%clk 0:01:45]} 25. Ba2 {[%clk 0:01:52]}  a5 {[%clk 0:01:43]} 26. c3 {[%clk 0:01:43]}  Rd8 {[%clk 0:01:39]} 0-1


[Site "https://www.chess.com"]

[Event "Titled Tuesday Blitz November 01 Early 2022"]
[White "Xiong, Jeffery"]
[Black "Gireman, Ja"]
[WhiteFideId "2047640"]
[BlackFideId "5043794"]
[WhiteElo "2725"]
[BlackElo "2153"]
[Result "1-0"]
[Round "01"]
[TimeControl "180+1"]
[Date "2022.11.01"]
[WhiteClock "0:00:19"]
[BlackClock "0:00:07"]

1. d4 {[%clk 0:02:42]}  Nf6 {[%clk 0:02:59]} 2. Nf3 {[%clk 0:02:40]}  g6 {[%clk 0:03:00]} 3. Nbd2 {[%clk 0:02:40]}  d5 {[%clk 0:03:00]} 4. b3 {[%clk 0:02:40]}  c5 {[%clk 0:03:00]} 5. dxc5 {[%clk 0:02:39]}  Bg7 {[%clk 0:03:00]} 6. Bb2 {[%clk 0:02:38]}  Nbd7 {[%clk 0:03:01]} 7. b4 {[%clk 0:02:38]}  a5 {[%clk 0:03:01]} 8. a3 {[%clk 0:02:38]}  O-O {[%clk 0:03:01]} 9. e3 {[%clk 0:02:38]}  Qc7 {[%clk 0:03:01]} 10. Bb5 {[%clk 0:02:25]}  Ne4 {[%clk 0:02:25]} 11. Bxg7 {[%clk 0:02:24]}  Kxg7 {[%clk 0:02:24]} 12. Nxe4 {[%clk 0:02:25]}  dxe4 {[%clk 0:02:25]} 13. Nd2 {[%clk 0:02:23]}  Rd8 {[%clk 0:02:17]} 14. Qc1 {[%clk 0:02:13]}  Nf6 {[%clk 0:02:06]} 15. h3 {[%clk 0:02:05]}  Qe5 {[%clk 0:02:00]} 16. c3 {[%clk 0:01:17]}  Qg5 {[%clk 0:01:59]} 17. Bf1 {[%clk 0:01:16]}  Nd5 {[%clk 0:01:40]} 18. Nb3 {[%clk 0:01:15]}  e5 {[%clk 0:01:09]} 19. Nxa5 {[%clk 0:01:10]}  Be6 {[%clk 0:01:02]} 20. Nc4 {[%clk 0:01:07]}  f5 {[%clk 0:01:01]} 21. Nd6 {[%clk 0:01:02]}  f4 {[%clk 0:00:55]} 22. c4 {[%clk 0:00:44]}  fxe3 {[%clk 0:00:43]} 23. cxd5 {[%clk 0:00:44]}  exf2+ {[%clk 0:00:35]} 24. Kxf2 {[%clk 0:00:45]}  Rf8+ {[%clk 0:00:25]} 25. Kg1 {[%clk 0:00:45]}  e3 {[%clk 0:00:16]} 26. dxe6 {[%clk 0:00:43]}  Rf2 {[%clk 0:00:16]} 27. Nc4 {[%clk 0:00:36]}  Raf8 {[%clk 0:00:14]} 28. Qxe3 {[%clk 0:00:33]}  Qh4 {[%clk 0:00:12]} 29. Qxe5+ {[%clk 0:00:31]}  R8f6 {[%clk 0:00:10]} 30. e7 {[%clk 0:00:25]}  Rf5 {[%clk 0:00:08]} 31. e8=N+ {[%clk 0:00:20]}  Kh6 {[%clk 0:00:07]} 32. Qe3+ {[%clk 0:00:19]}  g5 {[%clk 0:00:07]} 33. Nxf6 {[%clk 0:00:19]} 1-0


[Site "https://www.chess.com"]